[Event "3rd Sunway Formentera-A 2024"]
[Site "Formentera"]
[Date "2024.04.19"]
[Round "10.8"]
[White "Schulman, Julia"]
[Black "Stark, John"]
[Result "0-1"]
[ECO "C02"]
[WhiteElo "1732"]
[BlackElo "1954"]
[Annotator "TA"]
[PlyCount "80"]
[EventDate "2024.04.03"]
[EventType "swiss"]
[EventCountry "ESP"]
[SourceTitle "playchess.com"]
[Source "ChessBase"]
[SourceQuality "1"]
[TimeControl "40/5400+30:1800+30"]

{[%evp 12,80,0,0,0,0,0,-9,0,0,0,-25,0,0,29,24,81,90,89,77,91,19,24,0,0,0,22,6,66,58,64,0,48,67,150,140,129,0,0,0,0,-42,-27,-98,-89,-86,-65,-85,0,-31,-58,-54,-54,-156,-146,-161,-153,-481,-466,-475,-469,-1050,-979,-1740,-1708,-1501,-1444,-5294,-5078,-5078,-3670]} 1. e4 {[%emt 0:00:04]} e6 {[%emt 0:00:34]} 2. d4 {[%emt 0:00:18]} d5 {[%emt 0:00:04]} 3. e5 {[%emt 0:00:14]} c5 {[%emt 0:00:02]} 4. c3 {[%emt 0:00:16]} Nc6 {[%emt 0:00:07]} 5. Nf3 {[%emt 0:00:14]} Qb6 {[%emt 0:00:07]} 6. Na3 {[%emt 0:00:16]} cxd4 {[%emt 0:01:44]} 7. cxd4 {[%emt 0:00:18]} Bb4+ {[%emt 0:00:04]} 8. Bd2 {[%emt 0:00:43]} Nge7 {[%emt 0:03:26]} 9. Nb5 {[%emt 0:01:54]} Bxd2+ {[%emt 0:01:04] The position is equal.} 10. Qxd2 {[%emt 0:00:37]} O-O {[%emt 0:00:09]} 11. Bd3 {[%emt 0:01:33]} h6 {[%emt 0:03:41]} 12. O-O {[%emt 0:00:42]} Kh8 {[%emt 0:00:28]} 13. a4 {[%emt 0:02:55][%cal Ba2a4,Ba4a5][%mdl 32]} a6 {[%emt 0:02:15] [#]} (13... a5 $11) 14. a5 $1 $16 {[%emt 0:01:07]} Qd8 {[%emt 0:00:06]} 15. Nd6 {[%emt 0:07:29]} f6 {[%emt 0:01:25]} 16. Nxc8 {[%emt 0:08:13]} (16. Qc3 $16) 16... Rxc8 $11 {[%emt 0:00:15]} 17. Rfe1 {[%emt 0:04:28]} fxe5 {[%emt 0:01:06]} 18. dxe5 {[%emt 0:00:26]} Rxf3 {[%emt 0:02:35]} 19. gxf3 {[%emt 0:00:19]} Nd4 {[%emt 0:00:14]} ({Better is} 19... Qf8 $1 $11) 20. Qf4 $14 {[%emt 0:03:23]} Nec6 {[%emt 0:02:31][%cal Od8g8]} 21. Kh1 {[%emt 0:03:44]} (21. Re3 $14) 21... Qe7 {[%emt 0:01:54]} (21... Qf8 $1 $11 {is more appropriate.} 22. Qxf8+ Rxf8) 22. Qg4 {[%emt 0:02:54] aiming for Qg6.} Rf8 {[%emt 0:10:34]} ({Black should play} 22... Qg5 $14) 23. Qg6 $16 {[%emt 0:04:33][%csl Gd3][%cal Rg6h7] [#]} Nf5 {[%emt 0:00:30]} 24. Bxf5 {[%emt 0:03:56]} (24. f4 $16) 24... Rxf5 $11 {[%emt 0:00:12]} 25. Rac1 {[%emt 0:11:39]} Rxf3 {[%emt 0:06:36]} 26. Rc2 {[%emt 0:07:19]} Rf5 {[%emt 0:02:57][%cal Of5g5][%mdl 1024] Black has compensation.} 27. b3 {[%emt 0:12:18]} (27. Rg1 $11) 27... Rg5 $17 {[%emt 0:05:16]} (27... Nxe5 $2 28. Rxe5 Rf8 29. Qxe6 $18 (29. Rxe6 Qf7 $18)) 28. Qd3 {[%emt 0:00:25]} Qb4 {[%emt 0:01:01]} (28... Nxe5 29. Rc8+) 29. Ra1 {[%emt 0:02:17]} Qg4 {[%emt 0:00:47] Black is more active.} ({Inferior is} 29... Nxe5 30. Rc8+) (29... Rf5 $17 30. Rf1 Nxe5 (30... Nxa5 31. Rc8+ Kh7 32. Re8 $11)) 30. f3 {[%emt 0:01:22]} Qf4 {[%emt 0:02:57]} 31. Ra4 {[%emt 0:02:30]} Qxe5 {[%emt 0:01:48]} 32. Re2 {[%emt 0:02:12]} (32. Rg4 $15) 32... Qf6 $40 {[%emt 0:01:19][%mdl 128] ...Ne5 is the strong threat. Black is out for blood.} 33. Rc2 {[%emt 0:04:14]} Rf5 {[%emt 0:05:33]} 34. Qc3 {[%emt 0:08:48] This costs White the game.} (34. f4 $17 {is a better chance.}) 34... d4 $19 {[%emt 0:00:22] Black is clearly winning.} (34... Rxf3 $2 35. Qxf6 Rxf6 (35... gxf6 36. Rg4 $17) 36. Kg2 $19) 35. Qe1 {[%emt 0:00:31]} Rxf3 {[%emt 0:00:15]} 36. Kg2 {[%emt 0:00:45] Against Rf1} (36. Ra1 $142 d3 (36... Rxb3 $2 37. Rg2 $19) 37. Rg2) 36... Re3 {[%emt 0:03:31]} 37. Qf2 {[%emt 0:00:54] Prevents Qf3+} Qg6+ {[%emt 0:00:44]} 38. Kf1 {[%emt 0:01:34]} Qe4 {[%emt 0:00:25] And now ...Qh1+ would win.} 39. Re2 {[%emt 0:01:27]} Qh1+ {[%emt 0:00:04]} 40. Qg1 {[%emt 0:00:00]} Qxg1+ {[%emt 0:00:00] Weighted Error Value: White=0.89/Black=0.19 (very precise) .  Loses game:     	White=1     	---        Mistake:       	White=6     	Black=5      Inaccurate:     	White=3     	Black=1      OK:         	White=8     	Black=7      Best:        	White=3     	Black=4      Strong:       	White=1     	---} 0-1

[Event "3rd Sunway Formentera-A 2024"]
[Site "Formentera"]
[Date "2024.04.19"]
[Round "10.9"]
[White "Vantika Agrawal"]
[Black "Balakrishnan, Praveen"]
[Result "0-1"]
[ECO "E08"]
[WhiteElo "2398"]
[BlackElo "2500"]
[Annotator "TA"]
[PlyCount "94"]
[EventDate "2024.04.03"]
[EventType "swiss"]
[EventCountry "ESP"]
[SourceTitle "playchess.com"]
[Source "ChessBase"]
[SourceQuality "1"]
[TimeControl "40/5400+30:1800+30"]

{[%evp 29,94,33,35,47,59,59,67,54,58,58,59,54,54,37,68,48,33,49,47,53,56,35,20,15,46,45,25,24,61,52,62,60,45,-31,218,-133,-135,-116,-122,-386,-368,-376,-379,-308,-177,-697,-448,-543,-535,-1682,-1750,-29987,-1878,-1301,-2072,-1833,-2023,-1960,-1965,-1316,-2091,-1993,-1939,-29996,-29997,-29997,-29998]} 1. d4 {[%emt 0:02:30]} d5 {[%emt 0:10:40]} 2. c4 {[%emt 0:00:37]} e6 {[%emt 0:00:07]} 3. Nf3 {[%emt 0:00:05]} Nf6 {[%emt 0:00:07]} 4. g3 {[%emt 0:00:04]} Bb4+ {[%emt 0:00:07]} 5. Bd2 {[%emt 0:00:18]} Be7 {[%emt 0:00:09]} 6. Bg2 {[%emt 0:00:08]} O-O {[%emt 0:00:08]} 7. O-O {[%emt 0:00:57]} c6 {[%emt 0:00:05]} 8. Qc2 {[%emt 0:00:35]} Nbd7 {[%emt 0:00:07]} 9. Bf4 {[%emt 0:03:43]} a5 {[%emt 0:01:20]} 10. Rd1 {[%emt 0:01:29] E08: Closed Catalan: Main Line: 7 Qc2.} h6 {[%emt 0:00:08]} 11. Nc3 {[%emt 0:08:00]} dxc4 {[%emt 0:00:41]} 12. Nd2 {[%emt 0:05:25]} Nb6 {[%emt 0:00:45]} 13. e4 {[%emt 0:02:12]} a4 {[%emt 0:02:30]} 14. a3 {[%emt 0:04:12]} Bd7 {[%emt 0:06:46]} 15. Nf3 {[%emt 0:00:32]} Qc8 {[%emt 0:10:32]} 16. Ne5 {[%emt 0:02:30]} Re8 {[%emt 0:14:01]} 17. h4 $146 {[%emt 0:08:41]} ({Predecessor:} 17. Rac1 Bf8 18. Na2 c5 19. Nxc4 Nxc4 20. Qxc4 b6 21. dxc5 e5 22. Qd3 Bg4 23. cxb6 {0-1 Batchuluun,T (2449)-Tabatabaei,M (2685) Asian Games tt 2023 (7.2)}) 17... c5 {[%emt 0:06:32]} 18. Nxd7 {[%emt 0:19:24]} Nfxd7 {[%emt 0:01:03]} 19. d5 {[%emt 0:06:57]} e5 {[%emt 0:20:32]} 20. Be3 {[%emt 0:02:09]} Nf6 {[%emt 0:08:36]} 21. d6 {[%emt 0:07:15]} Bd8 {[%emt 0:00:30]} 22. f3 {[%emt 0:06:36]} Qc6 {[%emt 0:01:39]} 23. Bh3 {[%emt 0:00:35]} Nbd7 {[%emt 0:02:38]} 24. Nd5 {[%emt 0:04:08]} b5 {[%emt 0:01:00]} 25. Nxf6+ {[%emt 0:00:47]} Nxf6 {[%emt 0:01:32]} 26. Qf2 {[%emt 0:08:05]} Bb6 {[%emt 0:00:39]} 27. g4 $1 {[%emt 0:00:42]} Red8 {[%emt 0:03:36]} 28. g5 {[%emt 0:00:15]} hxg5 {[%emt 0:02:38]} 29. hxg5 {[%emt 0:00:07]} Nh7 $1 {[%emt 0:00:33]} 30. d7 $1 {[%emt 0:05:22]} Nf8 {[%emt 0:00:17]} 31. Qh4 {[%emt 0:01:04]} (31. Kg2 $14) 31... Nxd7 $2 {[%emt 0:00:58] [#]} (31... c3 $15 {keeps the upper hand.} 32. bxc3 c4 33. Bxb6 Qxb6+ 34. Qf2 Qc7) 32. g6 $2 {[%emt 0:00:32]} (32. Bxd7 $1 $18 {[%mdl 512]} Rxd7 33. Rxd7 Qxd7 34. Kf2) 32... Nf6 $17 {[%emt 0:02:22]} (32... Qxg6+ $6 33. Kf2 Nf8 34. Bf5 Rxd1 35. Rxd1 $11) 33. gxf7+ {[%emt 0:00:22]} Kxf7 {[%emt 0:00:07]} 34. Kf2 $2 {[%emt 0:00:32][%mdl 8192]} (34. Qg5 $17 {was called for.}) 34... c3 $19 {[%emt 0:01:57]} (34... Rh8 35. Qg3 c3 36. bxc3 $19) 35. bxc3 {[%emt 0:00:35]} c4 {[%emt 0:00:12]} 36. Qg5 {[%emt 0:00:28]} Rh8 {[%emt 0:01:24]} (36... Bxe3+ $142 37. Kxe3 Qc5+ 38. Ke2 Rd3) 37. Bf5 $2 {[%emt 0:00:34]} (37. Rh1 g6 38. Rag1 Bxe3+ 39. Qxe3) 37... Rh2+ {[%emt 0:00:42]} 38. Kg3 {[%emt 0:00:28] [#]} Rah8 $1 {[%emt 0:01:04]} 39. Qg6+ {[%emt 0:00:30]} Kf8 {[%emt 0:00:09]} 40. Rd7 {[%emt 0:00:00]} Nh5+ {[%emt 0:00:00]} ({Inferior is} 40... Bxe3 41. Qf7#) (40... Qxd7 $142 41. Bh6 R8xh6 (41... R2xh6 $2 42. Qxh6 Rxh6 43. Bxd7 $19) 42. Qxh6 Rxh6 43. Bxd7 Nxd7 44. f4 exf4+ 45. Kxf4 Rh3 46. e5 Rxc3 47. Rb1 Rxa3 48. Rb2 c3 49. Rg2 b4 50. Rc2 Bd4 51. Ke4 b3 (51... Bxe5 52. Rf2+ Ke7 53. Kd3 b3 54. Rf1 b2 55. Kc2 Ra1 56. Rb1 Kf8 57. Kd3 Rxb1 58. Ke4 Re1+ 59. Kf5 b1=Q+ 60. Ke6 Qg6+ 61. Kd5 Qe4+ 62. Ke6 Nc5#) 52. Rc1 Bxe5 53. Rh1 b2 54. Kd3 Ra1 (54... g5 55. Rf1+ Nf6 56. Rb1 Ra1 57. Kc2 a3 58. Kd3 Rxb1 59. Kc4 Rd1 60. Kb4 b1=Q+ 61. Kxa3 Bd6+ 62. Ka4 Qb4#) 55. Rb1 a3 (55... Rxb1 56. Ke4 Re1+ 57. Kf5 b1=Q+ 58. Ke6 Qg6+ 59. Kd5 Qe4+ 60. Ke6 Nc5#) 56. Ke4 Rxb1 (56... a2 57. Rxa1 bxa1=Q 58. Ke3 Qf1 59. Ke4 a1=Q 60. Kd5 Qd3+ 61. Ke6 Qaa6#) 57. Kf3 Re1 (57... Rf1+ 58. Ke4 b1=Q+ 59. Kd5 Qd3+ 60. Kc6 Rf6+ 61. Kb7 Qa6#) 58. Kg2 b1=Q (58... b1=B 59. Kf2 c2 60. Kxe1 c1=Q+ 61. Ke2 Be4 62. Kf2 Qd1 63. Ke3 Qe1#) 59. Kf2 Qd3 60. Kxe1 Bg3#) 41. Kxh2 $19 {[%emt 0:06:13]} Nf4+ {[%emt 0:01:10]} 42. Kg3 {[%emt 0:00:21]} Nxg6 {[%emt 0:00:30]} 43. Bxb6 {[%emt 0:01:23]} Qxb6 {[%emt 0:02:03]} 44. Rad1 {[%emt 0:02:17]} Rh6 {[%emt 0:06:09]} 45. R7d6 {[%emt 0:22:25]} Qe3 {[%emt 0:00:32]} 46. Bxg6 {[%emt 0:00:24]} Qg5+ {[%emt 0:00:27]} ({Weaker is} 46... Qxc3 47. Re6 Rxg6+ (47... Qxa3 48. Re8#) 48. Rxg6 $19) 47. Kf2 {[%emt 0:00:06]} Rh2+ {[%emt 0:00:04]} 0-1

[Event "3rd Sunway Formentera-A 2024"]
[Site "Formentera"]
[Date "2024.04.19"]
[Round "10.10"]
[White "Tokhirjonova, Gulrukhbegim"]
[Black "Kazarian, Anna-Maja"]
[Result "1-0"]
[ECO "A05"]
[WhiteElo "2357"]
[BlackElo "2207"]
[Annotator "TA"]
[PlyCount "71"]
[EventDate "2024.04.03"]
[EventType "swiss"]
[EventCountry "ESP"]
[SourceTitle "playchess.com"]
[Source "ChessBase"]
[SourceQuality "1"]
[TimeControl "40/5400+30:1800+30"]

{[%evp 11,71,25,32,17,38,0,0,0,0,-13,0,-43,-6,-6,8,-19,-20,-20,-21,-23,-14,-73,-18,-50,-26,-48,-21,-76,-71,-77,-10,-89,-68,-81,-48,-118,-93,-142,73,66,75,79,87,79,72,79,74,65,420,414,519,541,530,505,571,570,577,565,539,495,597,527]} 1. Nf3 {[%emt 0:03:35]} Nf6 {[%emt 0:00:04]} 2. g3 {[%emt 0:00:18]} b5 {[%emt 0:00:08]} 3. Bg2 {[%emt 0:00:21]} Bb7 {[%emt 0:00:05]} 4. O-O {[%emt 0:00:43]} e6 {[%emt 0:00:48]} 5. d3 {[%emt 0:00:41]} d6 {[%emt 0:00:58]} 6. e4 {[%emt 0:00:41]} Nbd7 {[%emt 0:00:56]} 7. Nbd2 {[%emt 0:02:50]} Be7 {[%emt 0:02:11]} 8. h3 {[%emt 0:00:09]} O-O {[%emt 0:01:48]} 9. Qe2 {[%emt 0:05:39] The position is equal.} c5 {[%emt 0:04:40]} 10. Nh2 {[%emt 0:00:49]} Qb6 {[%emt 0:01:00][%cal Oc5c4]} 11. Kh1 {[%emt 0:04:46]} g6 {[%emt 0:05:34][%cal Oc5c4]} 12. b3 {[%emt 0:03:52]} e5 {[%emt 0:02:43]} 13. c4 {[%emt 0:07:07]} b4 {[%emt 0:01:50]} 14. Ndf3 {[%emt 0:02:21]} a5 {[%emt 0:04:49]} 15. Bg5 {[%emt 0:14:12]} Rfe8 {[%emt 0:04:47]} 16. h4 {[%emt 0:02:06]} (16. a3 $11) 16... Nf8 {[%emt 0:02:47]} ({Black should try} 16... a4 $17) 17. Qd2 {[%emt 0:15:03]} Bc8 {[%emt 0:02:41]} 18. Ng1 {[%emt 0:01:03]} Ne6 {[%emt 0:03:32]} 19. Be3 {[%emt 0:00:30]} (19. Bxf6 $11 {keeps the balance.} Bxf6 20. Ngf3) 19... a4 $17 {[%emt 0:07:21]} 20. Ne2 {[%emt 0:00:52]} Ng7 {[%emt 0:11:46]} (20... Ra6 $17) 21. f4 {[%emt 0:01:57]} (21. a3 $11 {remains equal.}) 21... Ra7 {[%emt 0:01:59]} 22. Bf3 {[%emt 0:04:45]} Bh3 {[%emt 0:01:42]} 23. Rfb1 {[%emt 0:00:15]} (23. Rg1 $15) 23... Rea8 {[%emt 0:04:52]} 24. Qb2 {[%emt 0:06:52]} (24. bxa4 $142 Rxa4 25. Rb2) 24... Nfh5 $2 {[%emt 0:09:32]} (24... Qd8 $17 {and life is bright. ...Qd7 is the strong threat.} 25. Rd1 h5) 25. fxe5 $16 {[%emt 0:02:20]} dxe5 {[%emt 0:06:30] [#]} ({But not} 25... a3 $2 26. Qd2 $18) 26. g4 $1 {[%emt 0:01:07]} Nf4 {[%emt 0:00:58]} 27. Bxf4 {[%emt 0:02:33]} exf4 {[%emt 0:00:05]} 28. Nxf4 {[%emt 0:00:26] And now e5 would win.} Qf6 {[%emt 0:01:57]} 29. Nxh3 {[%emt 0:00:25] Strongly threatening e5.} axb3 $2 {[%emt 0:03:32][%mdl 8192] [#] Loses the game.} (29... Qxb2 $1 $14 30. Rxb2 axb3) 30. e5 $1 $18 {[%emt 0:00:35]} ({Less strong is} 30. Qxb3 Qxh4 31. Bg2 h5 32. gxh5 Nxh5 $16) 30... Qxh4 {[%emt 0:02:51][%cal Ra7a2]} 31. Bxa8 {[%emt 0:00:11] White is clearly winning.} ({Worse is} 31. axb3 Rxa1 32. Rxa1 Rxa1+ 33. Qxa1 Qxh3 34. Qa8+ Bf8 $15) 31... Rxa8 {[%emt 0:04:27]} 32. Nf4 {[%emt 0:00:09]} h5 {[%emt 0:02:14]} 33. axb3 {[%emt 0:05:16]} Rxa1 {[%emt 0:00:08]} 34. Rxa1 {[%emt 0:00:07]} hxg4 {[%emt 0:00:08]} 35. Ng2 {[%emt 0:00:25]} Qh5 {[%emt 0:03:05]} 36. Qe2 {[%emt 0:00:26] Weighted Error Value: White=0.22 (precise) /Black=0.50.  Loses game:     	---       	Black=1      Mistake:       	White=5     	Black=3      Inaccurate:     	White=4     	Black=3      OK:         	White=6     	Black=7      Best:        	White=3     	---        Strong:       	White=2     	---} 1-0

[Event "3rd Sunway Formentera-A 2024"]
[Site "Formentera"]
[Date "2024.04.19"]
[Round "10.11"]
[White "Maisuradze, Nino"]
[Black "Botez, Andrea"]
[Result "1-0"]
[ECO "E73"]
[WhiteElo "2191"]
[BlackElo "1879"]
[Annotator "TA"]
[PlyCount "39"]
[EventDate "2024.04.03"]
[EventType "swiss"]
[EventCountry "ESP"]
[SourceTitle "playchess.com"]
[Source "ChessBase"]
[SourceQuality "1"]
[TimeControl "40/5400+30:1800+30"]

{[%evp 12,39,39,30,29,20,38,44,39,16,19,15,20,18,46,43,74,70,77,75,391,383,345,346,843,879,888,872,887,854]} 1. d4 {[%emt 0:05:30]} Nf6 {[%emt 0:00:07]} 2. c4 {[%emt 0:00:08]} g6 {[%emt 0:00:04]} 3. Nc3 {[%emt 0:00:03]} Bg7 {[%emt 0:00:05]} 4. e4 {[%emt 0:00:11]} d6 {[%emt 0:00:06]} 5. Be2 {[%emt 0:00:13]} O-O {[%emt 0:00:10]} 6. h4 {[%emt 0:00:53]} h5 {[%emt 0:02:49]} 7. Bg5 {[%emt 0:00:47]} c5 {[%emt 0:06:15]} 8. d5 {[%emt 0:12:44]} e6 {[%emt 0:14:08]} 9. Qd2 {[%emt 0:26:11][%cal Og2g4]} exd5 {[%emt 0:08:32] White is slightly better.} 10. exd5 {[%emt 0:01:52]} Bf5 {[%emt 0:02:13]} 11. f3 {[%emt 0:01:33][%cal Og2g4]} Re8 {[%emt 0:02:08]} 12. Nh3 {[%emt 0:04:44]} Nbd7 {[%emt 0:03:23]} 13. Nf2 {[%emt 0:00:35][%cal Og2g4] [#] Strongly threatening g4!} Qa5 {[%emt 0:02:12]} 14. O-O {[%emt 0:08:50][%cal Bh1f1,Bf1f7,Bf7g7][%mdl 32] aiming for g4.} Qb6 {[%emt 0:05:04]} 15. Rae1 {[%emt 0:14:33]} Kh7 $2 {[%emt 0:09:27][%mdl 8192] This move loses the game for Black.} (15... Ne5 $16 {is more resistant.}) 16. g4 $18 {[%emt 0:01:42]} hxg4 {[%emt 0:01:41]} 17. fxg4 {[%emt 0:00:04]} Ne4 $2 {[%emt 0:25:43]} (17... Rxe2 18. Qxe2 (18. Nxe2 Ne5 $18) 18... Re8) 18. Nfxe4 {[%emt 0:00:45] White is clearly winning.} Bxe4 {[%emt 0:00:15]} 19. Rxf7 {[%emt 0:00:45][%cal Og5h6] [#] Black must now prevent Bh6!} Ne5 {[%emt 0:05:56]} 20. Rxg7+ {[%emt 0:05:30] Weighted Error Value: White=0.03 (flawless) /Black=0.57.  Loses game:     	---       	Black=1      Mistake:       	---       	Black=1      Inaccurate:     	---       	Black=2      OK:         	White=7     	Black=3      Best:        	White=2     	---} 1-0

[Event "3rd Sunway Formentera-A 2024"]
[Site "Formentera"]
[Date "2024.04.19"]
[Round "10.12"]
[White "Tsatsalashvili, Keti"]
[Black "Mazet, Julien"]
[Result "1/2-1/2"]
[ECO "A53"]
[WhiteElo "2315"]
[BlackElo "2031"]
[Annotator "TA"]
[PlyCount "86"]
[EventDate "2024.04.03"]
[EventType "swiss"]
[EventCountry "ESP"]
[SourceTitle "playchess.com"]
[Source "ChessBase"]
[SourceQuality "1"]
[TimeControl "40/5400+30:1800+30"]

{[%evp 22,86,24,29,99,32,51,35,42,37,68,39,47,47,57,66,61,78,61,79,72,-48,-39,-46,-47,-120,-66,-62,-58,-47,-39,-49,-51,-121,-116,-116,-104,-118,-69,-68,-71,-96,-88,-87,-73,-86,-21,-37,-20,-70,-89,-89,-56,-45,0,-6,-2,-58,-64,-79,0,-48,0,-61,0,-58,0]} 1. Nf3 {[%emt 0:00:25]} d6 {[%emt 0:00:14]} 2. d4 {[%emt 0:00:23]} Nf6 {[%emt 0:00:24]} 3. c4 {[%emt 0:00:23]} Bg4 {[%emt 0:00:10]} 4. g3 {[%emt 0:03:41]} Nbd7 {[%emt 0:00:49]} 5. Bg2 {[%emt 0:00:14]} c6 {[%emt 0:00:23]} 6. Nc3 {[%emt 0:00:56]} e5 {[%emt 0:00:14]} 7. O-O {[%emt 0:02:27]} Be7 {[%emt 0:00:38]} 8. h3 {[%emt 0:03:42]} Bh5 {[%emt 0:00:16]} 9. Nh4 {[%emt 0:01:25]} Bg6 {[%emt 0:00:24]} 10. e4 {[%emt 0:03:14]} O-O {[%emt 0:01:51]} 11. Nf5 {[%emt 0:03:47]} Bxf5 {[%emt 0:01:04]} 12. exf5 {[%emt 0:00:04]} Qb6 {[%emt 0:07:48]} (12... Nb6 $11 {remains equal.}) 13. dxe5 {[%emt 0:02:29]} (13. d5 $1 $16) 13... dxe5 $14 {[%emt 0:00:15]} 14. Qe2 {[%emt 0:01:21]} Qc7 {[%emt 0:04:48] White is slightly better.} 15. Be3 {[%emt 0:03:41]} Bc5 {[%emt 0:02:52]} 16. Rad1 {[%emt 0:07:01]} a5 {[%emt 0:01:47]} 17. g4 {[%emt 0:01:42]} h6 {[%emt 0:01:02]} 18. h4 {[%emt 0:01:45] Black must now prevent g5.} Bxe3 {[%emt 0:01:00]} 19. fxe3 {[%emt 0:00:02] Strongly threatening g5.} Nh7 {[%emt 0:05:44]} 20. Ne4 {[%emt 0:01:46] Inhibits Nc5. g5 would now be deadly. White is much more active. Black is weak on the light squares} Ndf6 {[%emt 0:02:21] [#]} 21. Nf2 {[%emt 0:26:47] [#]} (21. Nxf6+ $1 $16 gxf6 22. Rd3) 21... e4 $1 $15 {[%emt 0:06:27]} 22. Nh1 {[%emt 0:04:37] Prevents Qg3} Rad8 {[%emt 0:01:19]} 23. Bh3 {[%emt 0:00:25]} (23. Rxd8 $15 Rxd8 24. Rf4) 23... Rxd1 {[%emt 0:02:37]} (23... Nd7 $17 24. Bg2 Nc5) 24. Rxd1 {[%emt 0:00:03]} Rd8 {[%emt 0:00:19]} 25. Kg2 {[%emt 0:06:47]} Qe7 {[%emt 0:09:01]} 26. Rxd8+ {[%emt 0:09:19]} Qxd8 {[%emt 0:00:14]} 27. Qc2 {[%emt 0:01:21] [#]} (27. Nf2 $15) 27... Nd7 $1 $17 {[%emt 0:08:46]} 28. Qxe4 {[%emt 0:01:56]} Qxh4 {[%emt 0:00:35]} 29. Nf2 {[%emt 0:01:17]} Qf6 {[%emt 0:04:23]} (29... Qd8 $17 30. Qd4 Ng5) 30. Qd4 $15 {[%emt 0:01:02]} Qe7 {[%emt 0:01:21]} 31. Kf1 {[%emt 0:01:08]} Ng5 {[%emt 0:02:59]} 32. Bg2 {[%emt 0:00:06] Prevents Nf3} Ne5 {[%emt 0:01:22]} 33. c5 {[%emt 0:01:32]} Kf8 {[%emt 0:04:57]} ({Black should play} 33... f6 $17) 34. Ke2 $11 {[%emt 0:00:44]} f6 {[%emt 0:04:26]} 35. Qc3 {[%emt 0:01:54]} (35. a3 $11) 35... Qc7 $15 {[%emt 0:02:44][%cal Oe5g4]} 36. Qd4 {[%emt 0:01:10]} Ke8 {[%emt 0:01:19]} 37. b3 {[%emt 0:00:43]} Qf7 {[%emt 0:07:09]} 38. Qd6 {[%emt 0:01:32] aiming for Qb8+.} Qe7 {[%emt 0:01:19]} (38... Qd7 {feels hotter.} 39. Qb8+ Kf7 40. Qa8 g6) 39. Qd4 {[%emt 0:00:11]} ({White should try} 39. Qxe7+ $1 $11 Kxe7 40. a3) 39... Qc7 {[%emt 0:02:18]} 40. Qf4 {[%emt 0:00:00]} Qe7 {[%emt 0:00:00]} 41. Qd4 {[%emt 0:04:17]} Qc7 {[%emt 0:03:40]} 42. Qf4 $1 {[%emt 0:03:41]} Qe7 {[%emt 0:00:14]} 43. Qd4 {[%emt 0:00:20]} Qc7 {[%emt 0:40:27] Weighted Error Value: White=0.19 (very precise) /Black=0.23 (precise) .  Mistake:       	White=6     	Black=4      Inaccurate:     	White=1     	Black=4      OK:         	White=9     	Black=10     Best:        	White=2     	---        Strong:       	White=1     	Black=1} (43... Nd7 $15 44. Nd3 Nf7) 1/2-1/2